[Event "Titled Tuesday Blitz August 23 Late 2022"]
[White "Ladopoulos, Dimitrios"]
[Black "Postnikov, Daniil"]
[WhiteFideId "4239580"]
[BlackFideId "4166329"]
[WhiteElo "2195"]
[BlackElo "2261"]
[Result "0-1"]
[Round "10"]
[TimeControl "180+1"]
[Date "2022.08.23"]
[WhiteClock "0:00:02"]
[BlackClock "0:00:12"]

1. d4 {[%clk 0:03:00]}  Nf6 {[%clk 0:02:59]} 2. Nc3 {[%clk 0:02:53]}  d5 {[%clk 0:02:54]} 3. Bf4 {[%clk 0:02:53]}  c6 {[%clk 0:02:51]} 4. e3 {[%clk 0:02:40]}  Bf5 {[%clk 0:02:44]} 5. f3 {[%clk 0:02:38]}  Nbd7 {[%clk 0:02:40]} 6. g4 {[%clk 0:02:38]}  Bg6 {[%clk 0:02:40]} 7. h4 {[%clk 0:02:38]}  h5 {[%clk 0:02:38]} 8. g5 {[%clk 0:02:35]}  Ng8 {[%clk 0:02:37]} 9. Bd3 {[%clk 0:02:34]}  Bxd3 {[%clk 0:02:37]} 10. Qxd3 {[%clk 0:02:35]}  g6 {[%clk 0:02:37]} 11. Nge2 {[%clk 0:02:35]}  e6 {[%clk 0:02:36]} 12. e4 {[%clk 0:02:35]}  Bg7 {[%clk 0:02:35]} 13. O-O-O {[%clk 0:02:34]}  Ne7 {[%clk 0:02:34]} 14. Bd6 {[%clk 0:02:29]}  Nb6 {[%clk 0:02:29]} 15. e5 {[%clk 0:02:26]}  Nf5 {[%clk 0:02:25]} 16. Bc5 {[%clk 0:02:25]}  Nd7 {[%clk 0:02:22]} 17. Ba3 {[%clk 0:02:24]}  b5 {[%clk 0:02:21]} 18. b3 {[%clk 0:02:09]}  a5 {[%clk 0:02:21]} 19. Bb2 {[%clk 0:02:10]}  a4 {[%clk 0:02:19]} 20. b4 {[%clk 0:02:03]}  a3 {[%clk 0:02:18]} 21. Ba1 {[%clk 0:02:03]}  Bf8 {[%clk 0:02:17]} 22. Nb1 {[%clk 0:02:01]}  Bxb4 {[%clk 0:02:14]} 23. Bc3 {[%clk 0:02:02]}  Be7 {[%clk 0:02:13]} 24. Be1 {[%clk 0:02:00]}  Nb6 {[%clk 0:02:04]} 25. Ng3 {[%clk 0:01:59]}  Nxg3 {[%clk 0:02:04]} 26. Bxg3 {[%clk 0:02:00]}  Nc4 {[%clk 0:02:04]} 27. Rdf1 {[%clk 0:01:54]}  c5 {[%clk 0:01:56]} 28. Bf2 {[%clk 0:01:52]}  Nb2 {[%clk 0:01:49]} 29. Qxb5+ {[%clk 0:01:51]}  Kf8 {[%clk 0:01:47]} 30. dxc5 {[%clk 0:01:49]}  Kg7 {[%clk 0:01:42]} 31. Nxa3 {[%clk 0:01:40]}  Rxa3 {[%clk 0:01:39]} 32. Qxb2 {[%clk 0:01:40]}  Qa8 {[%clk 0:01:38]} 33. Kd2 {[%clk 0:01:32]}  Rb8 {[%clk 0:01:24]} 34. Qd4 {[%clk 0:01:30]}  Ra4 {[%clk 0:01:24]} 35. Qd3 {[%clk 0:01:28]}  Ra3 {[%clk 0:01:04]} 36. Qd4 {[%clk 0:01:20]}  Qa5+ {[%clk 0:01:01]} 37. Ke2 {[%clk 0:01:19]}  Rxa2 {[%clk 0:00:55]} 38. Rc1 {[%clk 0:00:56]}  Rbb2 {[%clk 0:00:51]} 39. Rhd1 {[%clk 0:00:51]}  Rxc2+ {[%clk 0:00:48]} 40. Rxc2 {[%clk 0:00:51]}  Rxc2+ {[%clk 0:00:49]} 41. Rd2 {[%clk 0:00:52]}  Bxc5 {[%clk 0:00:49]} 42. Rxc2 {[%clk 0:00:48]}  Bxd4 {[%clk 0:00:47]} 43. Bxd4 {[%clk 0:00:49]}  Qb5+ {[%clk 0:00:43]} 44. Ke3 {[%clk 0:00:48]}  Qb1 {[%clk 0:00:36]} 45. Rc8 {[%clk 0:00:34]}  Qe1+ {[%clk 0:00:23]} 46. Kd3 {[%clk 0:00:34]}  Qxh4 {[%clk 0:00:23]} 47. Bc5 {[%clk 0:00:10]}  Qxg5 {[%clk 0:00:21]} 48. Bf8+ {[%clk 0:00:10]}  Kh7 {[%clk 0:00:21]} 49. Bd6 {[%clk 0:00:11]}  Qf4 {[%clk 0:00:17]} 50. Rf8 {[%clk 0:00:03]}  Qxf3+ {[%clk 0:00:16]} 51. Kd4 {[%clk 0:00:04]}  h4 {[%clk 0:00:15]} 52. Kc5 {[%clk 0:00:02]}  h3 {[%clk 0:00:15]} 53. Be7 {[%clk 0:00:02]}  Qa3+ {[%clk 0:00:12]} 0-1


[Site "https://www.chess.com"]

[Event "Titled Tuesday Blitz August 23 Late 2022"]
[White "Leitao, Rafael"]
[Black "Aldokhin, Ivan"]
[WhiteFideId "2101246"]
[BlackFideId "24115720"]
[WhiteElo "2609"]
[BlackElo "2246"]
[Result "0-1"]
[Round "10"]
[TimeControl "180+1"]
[Date "2022.08.23"]
[WhiteClock "0:00:33"]
[BlackClock "0:00:18"]

1. c4 {[%clk 0:03:00]}  Nf6 {[%clk 0:02:59]} 2. Nc3 {[%clk 0:03:00]}  g6 {[%clk 0:03:00]} 3. g3 {[%clk 0:02:59]}  Bg7 {[%clk 0:02:59]} 4. Bg2 {[%clk 0:03:00]}  O-O {[%clk 0:02:59]} 5. Nf3 {[%clk 0:03:01]}  d6 {[%clk 0:03:00]} 6. d4 {[%clk 0:03:01]}  Nc6 {[%clk 0:02:56]} 7. O-O {[%clk 0:03:01]}  Bf5 {[%clk 0:02:56]} 8. d5 {[%clk 0:02:54]}  Na5 {[%clk 0:02:55]} 9. Nd4 {[%clk 0:02:54]}  Bd7 {[%clk 0:02:55]} 10. b3 {[%clk 0:02:51]}  c5 {[%clk 0:02:54]} 11. dxc6 {[%clk 0:02:51]}  Nxc6 {[%clk 0:02:54]} 12. Bb2 {[%clk 0:02:48]}  Re8 {[%clk 0:02:53]} 13. e3 {[%clk 0:02:48]}  h5 {[%clk 0:02:51]} 14. h3 {[%clk 0:02:45]}  Qc8 {[%clk 0:02:44]} 15. Kh2 {[%clk 0:02:45]}  Ne5 {[%clk 0:02:41]} 16. Nd5 {[%clk 0:02:26]}  Bf5 {[%clk 0:01:10]} 17. Nxf5 {[%clk 0:02:14]}  gxf5 {[%clk 0:00:51]} 18. Nxf6+ {[%clk 0:01:28]}  Bxf6 {[%clk 0:00:48]} 19. Qxh5 {[%clk 0:01:28]}  Kg7 {[%clk 0:00:38]} 20. Qe2 {[%clk 0:01:26]}  a5 {[%clk 0:00:34]} 21. f4 {[%clk 0:01:22]}  Nd7 {[%clk 0:00:29]} 22. e4 {[%clk 0:01:14]}  fxe4 {[%clk 0:00:27]} 23. Bxe4 {[%clk 0:01:12]}  Bxb2 {[%clk 0:00:24]} 24. Qxb2+ {[%clk 0:01:12]}  Nf6 {[%clk 0:00:24]} 25. g4 {[%clk 0:01:06]}  Rh8 {[%clk 0:00:20]} 26. Bf5 {[%clk 0:00:53]}  Qc5 {[%clk 0:00:19]} 27. Kg3 {[%clk 0:00:33]}  Qe3+ {[%clk 0:00:18]} 0-1


[Site "https://www.chess.com"]

[Event "Titled Tuesday Blitz August 23 Late 2022"]
[White "Maksimovic, Bojan"]
[Black "Kosteniuk, Alexandra"]
[WhiteFideId "14408120"]
[BlackFideId "4128125"]
[WhiteElo "2447"]
[BlackElo "2469"]
[Result "1-0"]
[Round "10"]
[TimeControl "180+1"]
[Date "2022.08.23"]
[WhiteClock "0:00:04"]
[BlackClock "0:00:03"]

1. e4 {[%clk 0:03:00]}  e5 {[%clk 0:03:00]} 2. Nf3 {[%clk 0:03:00]}  Nc6 {[%clk 0:03:00]} 3. Bb5 {[%clk 0:03:00]}  a6 {[%clk 0:03:00]} 4. Ba4 {[%clk 0:03:01]}  Nf6 {[%clk 0:03:00]} 5. O-O {[%clk 0:03:01]}  b5 {[%clk 0:02:59]} 6. Bb3 {[%clk 0:03:01]}  Be7 {[%clk 0:03:00]} 7. Re1 {[%clk 0:03:02]}  O-O {[%clk 0:02:59]} 8. a4 {[%clk 0:03:02]}  b4 {[%clk 0:02:58]} 9. d3 {[%clk 0:03:02]}  d6 {[%clk 0:02:56]} 10. Nbd2 {[%clk 0:03:02]}  Na5 {[%clk 0:02:55]} 11. Ba2 {[%clk 0:03:01]}  Be6 {[%clk 0:02:52]} 12. c3 {[%clk 0:02:47]}  Rb8 {[%clk 0:02:46]} 13. Bxe6 {[%clk 0:02:45]}  fxe6 {[%clk 0:02:46]} 14. d4 {[%clk 0:02:46]}  Nd7 {[%clk 0:02:28]} 15. dxe5 {[%clk 0:02:26]}  dxe5 {[%clk 0:02:27]} 16. Nf1 {[%clk 0:02:19]}  Qe8 {[%clk 0:02:14]} 17. Be3 {[%clk 0:02:10]}  bxc3 {[%clk 0:02:05]} 18. bxc3 {[%clk 0:02:09]}  Nc4 {[%clk 0:01:49]} 19. Qe2 {[%clk 0:02:08]}  Nd6 {[%clk 0:01:43]} 20. Ng3 {[%clk 0:02:06]}  a5 {[%clk 0:01:38]} 21. Reb1 {[%clk 0:02:03]}  Qg6 {[%clk 0:01:36]} 22. Nd2 {[%clk 0:01:42]}  Nf6 {[%clk 0:01:33]} 23. Nc4 {[%clk 0:01:16]}  Rxb1+ {[%clk 0:01:26]} 24. Rxb1 {[%clk 0:01:15]}  Nfxe4 {[%clk 0:01:26]} 25. Rc1 {[%clk 0:00:58]}  Nxg3 {[%clk 0:01:22]} 26. hxg3 {[%clk 0:00:59]}  Qe4 {[%clk 0:01:17]} 27. Nd2 {[%clk 0:00:27]}  Qxa4 {[%clk 0:01:15]} 28. Rb1 {[%clk 0:00:27]}  Qc2 {[%clk 0:01:10]} 29. Qa6 {[%clk 0:00:24]}  Qxc3 {[%clk 0:01:06]} 30. Nf3 {[%clk 0:00:21]}  e4 {[%clk 0:00:52]} 31. Rc1 {[%clk 0:00:17]}  Qd3 {[%clk 0:00:51]} 32. Qxd3 {[%clk 0:00:17]}  exd3 {[%clk 0:00:52]} 33. Rxc7 {[%clk 0:00:17]}  Nf5 {[%clk 0:00:52]} 34. Bd2 {[%clk 0:00:14]}  Bb4 {[%clk 0:00:51]} 35. Bxb4 {[%clk 0:00:14]}  axb4 {[%clk 0:00:52]} 36. Rb7 {[%clk 0:00:15]}  Rd8 {[%clk 0:00:34]} 37. Nd2 {[%clk 0:00:14]}  Rd4 {[%clk 0:00:32]} 38. Kf1 {[%clk 0:00:15]}  h5 {[%clk 0:00:31]} 39. Ke1 {[%clk 0:00:15]}  Nh6 {[%clk 0:00:23]} 40. f3 {[%clk 0:00:14]}  Nf5 {[%clk 0:00:22]} 41. Kf2 {[%clk 0:00:14]}  Nd6 {[%clk 0:00:18]} 42. Rb8+ {[%clk 0:00:12]}  Kf7 {[%clk 0:00:17]} 43. Ke3 {[%clk 0:00:11]}  Nf5+ {[%clk 0:00:18]} 44. Kf2 {[%clk 0:00:12]}  Nd6 {[%clk 0:00:17]} 45. Ke3 {[%clk 0:00:12]}  e5 {[%clk 0:00:17]} 46. Rb6 {[%clk 0:00:10]}  Nf5+ {[%clk 0:00:16]} 47. Kf2 {[%clk 0:00:10]}  Ne7 {[%clk 0:00:14]} 48. Rb7 {[%clk 0:00:09]}  Ke6 {[%clk 0:00:14]} 49. Ke1 {[%clk 0:00:09]}  Nf5 {[%clk 0:00:12]} 50. Nb3 {[%clk 0:00:08]}  Rd7 {[%clk 0:00:11]} 51. Nc5+ {[%clk 0:00:08]}  Kd6 {[%clk 0:00:10]} 52. Nxd7 {[%clk 0:00:09]}  Kc6 {[%clk 0:00:10]} 53. Ra7 {[%clk 0:00:07]}  Kd5 {[%clk 0:00:10]} 54. Kd2 {[%clk 0:00:05]}  Nxg3 {[%clk 0:00:09]} 55. Kxd3 {[%clk 0:00:06]}  h4 {[%clk 0:00:07]} 56. Nb6+ {[%clk 0:00:05]}  Kc5 {[%clk 0:00:08]} 57. Nc4 {[%clk 0:00:05]}  Nh5 {[%clk 0:00:05]} 58. Nxe5 {[%clk 0:00:04]}  Nf4+ {[%clk 0:00:05]} 59. Ke4 {[%clk 0:00:05]}  Nxg2 {[%clk 0:00:05]} 60. Rxg7 {[%clk 0:00:05]}  h3 {[%clk 0:00:05]} 61. Rh7 {[%clk 0:00:06]}  b3 {[%clk 0:00:06]} 62. Rxh3 {[%clk 0:00:06]}  Kb4 {[%clk 0:00:04]} 63. Rh2 {[%clk 0:00:05]}  Ne1 {[%clk 0:00:03]} 64. f4 {[%clk 0:00:05]}  Nc2 {[%clk 0:00:02]} 65. Nd3+ {[%clk 0:00:04]}  Kc3 {[%clk 0:00:03]} 66. f5 {[%clk 0:00:04]} 1-0


[Site "https://www.chess.com"]

[Event "Titled Tuesday Blitz August 23 Late 2022"]
[White "Noboa Silva, Kevin"]
[Black "Blanco Ronquillo, Humberto L."]
[WhiteFideId "3618471"]
[BlackFideId "3504239"]
[WhiteElo "2172"]
[BlackElo "2425"]
[Result "0-1"]
[Round "10"]
[TimeControl "180+1"]
[Date "2022.08.23"]
[WhiteClock "0:01:17"]
[BlackClock "0:01:43"]

1. d4 {[%clk 0:03:00]}  d5 {[%clk 0:02:59]} 2. c4 {[%clk 0:03:00]}  c6 {[%clk 0:02:59]} 3. Nc3 {[%clk 0:03:00]}  Nf6 {[%clk 0:02:59]} 4. cxd5 {[%clk 0:03:00]}  cxd5 {[%clk 0:02:59]} 5. Bf4 {[%clk 0:03:00]}  Nc6 {[%clk 0:02:59]} 6. e3 {[%clk 0:03:01]}  Bf5 {[%clk 0:02:59]} 7. Qb3 {[%clk 0:03:01]}  Na5 {[%clk 0:02:59]} 8. Qa4+ {[%clk 0:03:01]}  Bd7 {[%clk 0:02:59]} 9. Qc2 {[%clk 0:03:02]}  Rc8 {[%clk 0:02:59]} 10. Bd3 {[%clk 0:03:01]}  e6 {[%clk 0:02:59]} 11. Nf3 {[%clk 0:03:01]}  Nc4 {[%clk 0:03:00]} 12. O-O {[%clk 0:03:00]}  Bb4 {[%clk 0:03:00]} 13. Ne5 {[%clk 0:03:00]}  Nxb2 {[%clk 0:02:42]} 14. Nxd7 {[%clk 0:02:56]}  Qxd7 {[%clk 0:02:32]} 15. Qxb2 {[%clk 0:02:50]}  Bxc3 {[%clk 0:02:32]} 16. Qb3 {[%clk 0:02:48]}  Bxa1 {[%clk 0:02:32]} 17. Bb5 {[%clk 0:02:49]}  Rc6 {[%clk 0:02:32]} 18. Rxa1 {[%clk 0:02:46]}  O-O {[%clk 0:02:32]} 19. Bxc6 {[%clk 0:02:46]}  Qxc6 {[%clk 0:02:32]} 20. Rb1 {[%clk 0:02:44]}  Rc8 {[%clk 0:02:31]} 21. f3 {[%clk 0:02:44]}  b6 {[%clk 0:02:31]} 22. h4 {[%clk 0:02:40]}  Qc3 {[%clk 0:02:19]} 23. Qa4 {[%clk 0:02:33]}  Nh5 {[%clk 0:02:06]} 24. Qxa7 {[%clk 0:02:30]}  Nxf4 {[%clk 0:02:06]} 25. exf4 {[%clk 0:02:30]}  Qxd4+ {[%clk 0:02:07]} 26. Kh1 {[%clk 0:02:28]}  Qxf4 {[%clk 0:02:06]} 27. Qxb6 {[%clk 0:02:17]}  Qxh4+ {[%clk 0:02:06]} 28. Kg1 {[%clk 0:02:16]}  h5 {[%clk 0:02:07]} 29. Qb3 {[%clk 0:02:12]}  Qd4+ {[%clk 0:01:52]} 30. Kh2 {[%clk 0:02:09]}  Qf2 {[%clk 0:01:52]} 31. Qa4 {[%clk 0:01:17]}  Rc4 {[%clk 0:01:43]} 0-1


[Site "https://www.chess.com"]

[Event "Titled Tuesday Blitz August 23 Late 2022"]
[White "Pakleza, Zbigniew"]
[Black "Nazaretyan, Tigran"]
[WhiteFideId "1119290"]
[BlackFideId "24162345"]
[WhiteElo "2411"]
[BlackElo "2183"]
[Result "1-0"]
[Round "10"]
[TimeControl "180+1"]
[Date "2022.08.23"]
[WhiteClock "0:00:14"]
[BlackClock "0:00:09"]

1. d4 {[%clk 0:03:00]}  Nf6 {[%clk 0:02:59]} 2. Nf3 {[%clk 0:03:01]}  g6 {[%clk 0:02:58]} 3. Bf4 {[%clk 0:03:01]}  Bg7 {[%clk 0:02:58]} 4. e3 {[%clk 0:03:01]}  O-O {[%clk 0:02:58]} 5. Be2 {[%clk 0:03:01]}  d6 {[%clk 0:02:56]} 6. h3 {[%clk 0:03:01]}  c5 {[%clk 0:02:56]} 7. c3 {[%clk 0:03:02]}  cxd4 {[%clk 0:02:53]} 8. cxd4 {[%clk 0:03:00]}  Nc6 {[%clk 0:02:53]} 9. Nc3 {[%clk 0:03:00]}  Qb6 {[%clk 0:02:38]} 10. a3 {[%clk 0:02:47]}  Re8 {[%clk 0:02:35]} 11. Na4 {[%clk 0:02:29]}  Qc7 {[%clk 0:02:26]} 12. O-O {[%clk 0:02:27]}  e5 {[%clk 0:02:19]} 13. Bh2 {[%clk 0:02:28]}  Ne4 {[%clk 0:02:15]} 14. d5 {[%clk 0:01:47]}  Ne7 {[%clk 0:02:10]} 15. Rc1 {[%clk 0:01:36]}  Qd8 {[%clk 0:02:02]} 16. Qc2 {[%clk 0:01:11]}  Bf5 {[%clk 0:01:47]} 17. Qb3 {[%clk 0:00:54]}  b6 {[%clk 0:01:41]} 18. Bb5 {[%clk 0:00:34]}  Bd7 {[%clk 0:01:32]} 19. Nc3 {[%clk 0:00:22]}  Nc5 {[%clk 0:01:20]} 20. Qc4 {[%clk 0:00:19]}  Rc8 {[%clk 0:01:17]} 21. Qe2 {[%clk 0:00:16]}  Nf5 {[%clk 0:01:12]} 22. b4 {[%clk 0:00:11]}  Nb7 {[%clk 0:00:52]} 23. Ba6 {[%clk 0:00:08]}  Rb8 {[%clk 0:00:49]} 24. Nb5 {[%clk 0:00:06]}  Bxb5 {[%clk 0:00:37]} 25. Qxb5 {[%clk 0:00:06]}  Re7 {[%clk 0:00:34]} 26. Rc6 {[%clk 0:00:03]}  Qd7 {[%clk 0:00:28]} 27. Rfc1 {[%clk 0:00:03]}  Nd8 {[%clk 0:00:27]} 28. Rc8 {[%clk 0:00:01]}  Rxc8 {[%clk 0:00:25]} 29. Rxc8 {[%clk 0:00:02]}  Bf8 {[%clk 0:00:20]} 30. Qxd7 {[%clk 0:00:01]}  Rxd7 {[%clk 0:00:20]} 31. Bb5 {[%clk 0:00:02]}  Ne7 {[%clk 0:00:10]} 32. Bxd7 {[%clk 0:00:03]}  Nxc8 {[%clk 0:00:11]} 33. Bxc8 {[%clk 0:00:03]}  f5 {[%clk 0:00:11]} 34. Ng5 {[%clk 0:00:03]}  h6 {[%clk 0:00:09]} 35. Ne6 {[%clk 0:00:04]}  Nxe6 {[%clk 0:00:10]} 36. Bxe6+ {[%clk 0:00:04]}  Kg7 {[%clk 0:00:10]} 37. f3 {[%clk 0:00:04]}  Kf6 {[%clk 0:00:10]} 38. e4 {[%clk 0:00:04]}  f4 {[%clk 0:00:10]} 39. Kf1 {[%clk 0:00:04]}  Ke7 {[%clk 0:00:09]} 40. Bg1 {[%clk 0:00:05]}  Kd8 {[%clk 0:00:09]} 41. Ke2 {[%clk 0:00:06]}  Be7 {[%clk 0:00:09]} 42. Kd3 {[%clk 0:00:06]}  Bh4 {[%clk 0:00:09]} 43. Kc4 {[%clk 0:00:06]}  Kc7 {[%clk 0:00:09]} 44. Kb5 {[%clk 0:00:07]}  Kb7 {[%clk 0:00:09]} 45. Bf7 {[%clk 0:00:07]}  g5 {[%clk 0:00:09]} 46. Be8 {[%clk 0:00:07]}  a6+ {[%clk 0:00:09]} 47. Kc4 {[%clk 0:00:08]}  Be1 {[%clk 0:00:08]} 48. a4 {[%clk 0:00:07]}  Bd2 {[%clk 0:00:06]} 49. Bc6+ {[%clk 0:00:07]}  Kc7 {[%clk 0:00:06]} 50. a5 {[%clk 0:00:07]}  b5+ {[%clk 0:00:06]} 51. Bxb5 {[%clk 0:00:08]}  axb5+ {[%clk 0:00:06]} 52. Kxb5 {[%clk 0:00:09]}  Kb7 {[%clk 0:00:05]} 53. a6+ {[%clk 0:00:09]}  Ka8 {[%clk 0:00:06]} 54. Bf2 {[%clk 0:00:08]}  Bc3 {[%clk 0:00:05]} 55. Kc4 {[%clk 0:00:07]}  Bd2 {[%clk 0:00:05]} 56. b5 {[%clk 0:00:08]}  Ba5 {[%clk 0:00:04]} 57. b6 {[%clk 0:00:08]}  Bd2 {[%clk 0:00:03]} 58. Kb5 {[%clk 0:00:07]}  Be3 {[%clk 0:00:03]} 59. Be1 {[%clk 0:00:08]}  Kb8 {[%clk 0:00:03]} 60. Kc6 {[%clk 0:00:08]}  Bxb6 {[%clk 0:00:03]} 61. Kxb6 {[%clk 0:00:08]}  Ka8 {[%clk 0:00:04]} 62. Bb4 {[%clk 0:00:08]}  Kb8 {[%clk 0:00:04]} 63. Bxd6+ {[%clk 0:00:08]}  Ka8 {[%clk 0:00:04]} 64. Bxe5 {[%clk 0:00:09]}  h5 {[%clk 0:00:05]} 65. Bf6 {[%clk 0:00:09]}  g4 {[%clk 0:00:05]} 66. hxg4 {[%clk 0:00:10]}  hxg4 {[%clk 0:00:05]} 67. fxg4 {[%clk 0:00:10]}  f3 {[%clk 0:00:05]} 68. gxf3 {[%clk 0:00:11]}  Kb8 {[%clk 0:00:06]} 69. g5 {[%clk 0:00:12]}  Kc8 {[%clk 0:00:07]} 70. e5 {[%clk 0:00:12]}  Kd7 {[%clk 0:00:08]} 71. f4 {[%clk 0:00:12]}  Ke8 {[%clk 0:00:08]} 72. f5 {[%clk 0:00:13]}  Kf7 {[%clk 0:00:09]} 73. Kc5 {[%clk 0:00:13]}  Kg8 {[%clk 0:00:09]} 74. Kd6 {[%clk 0:00:14]}  Kf8 {[%clk 0:00:10]} 75. Ke6 {[%clk 0:00:14]}  Ke8 {[%clk 0:00:09]} 76. a7 {[%clk 0:00:14]}  Kf8 {[%clk 0:00:10]} 77. g6 {[%clk 0:00:14]}  Kg8 {[%clk 0:00:09]} 78. d6 {[%clk 0:00:14]} 1-0


[Site "https://www.chess.com"]

[Event "Titled Tuesday Blitz August 23 Late 2022"]
[White "Paravyan, David"]
[Black "Pulpan, Jakub"]
[WhiteFideId "4194985"]
[BlackFideId "302759"]
[WhiteElo "2569"]
[BlackElo "2451"]
[Result "1-0"]
[Round "10"]
[TimeControl "180+1"]
[Date "2022.08.23"]
[WhiteClock "0:00:42"]
[BlackClock "0:00:15"]

1. e4 {[%clk 0:03:00]}  e5 {[%clk 0:02:54]} 2. Nf3 {[%clk 0:03:00]}  Nc6 {[%clk 0:02:55]} 3. Nc3 {[%clk 0:03:00]}  Be7 {[%clk 0:02:48]} 4. d4 {[%clk 0:02:58]}  exd4 {[%clk 0:02:49]} 5. Nxd4 {[%clk 0:02:58]}  d6 {[%clk 0:02:48]} 6. Bb5 {[%clk 0:02:57]}  Bd7 {[%clk 0:02:48]} 7. O-O {[%clk 0:02:57]}  Nf6 {[%clk 0:02:48]} 8. Re1 {[%clk 0:02:57]}  O-O {[%clk 0:02:48]} 9. h3 {[%clk 0:02:56]}  Re8 {[%clk 0:02:46]} 10. Nxc6 {[%clk 0:02:56]}  Bxc6 {[%clk 0:02:44]} 11. Bxc6 {[%clk 0:02:55]}  bxc6 {[%clk 0:02:45]} 12. Qd3 {[%clk 0:02:54]}  Nd7 {[%clk 0:02:43]} 13. Bf4 {[%clk 0:02:54]}  Bf6 {[%clk 0:02:41]} 14. Rad1 {[%clk 0:02:54]}  Ne5 {[%clk 0:02:16]} 15. Qa6 {[%clk 0:02:50]}  Qc8 {[%clk 0:02:14]} 16. Qxc8 {[%clk 0:02:50]}  Rexc8 {[%clk 0:02:11]} 17. Na4 {[%clk 0:02:50]}  Nd7 {[%clk 0:02:02]} 18. b3 {[%clk 0:02:49]}  Nb6 {[%clk 0:02:02]} 19. Nxb6 {[%clk 0:02:48]}  axb6 {[%clk 0:02:03]} 20. a4 {[%clk 0:02:49]}  b5 {[%clk 0:01:58]} 21. axb5 {[%clk 0:02:49]}  cxb5 {[%clk 0:01:59]} 22. e5 {[%clk 0:02:49]}  dxe5 {[%clk 0:01:55]} 23. Bxe5 {[%clk 0:02:50]}  Bg5 {[%clk 0:01:06]} 24. Rd7 {[%clk 0:02:44]}  Re8 {[%clk 0:00:58]} 25. Kf1 {[%clk 0:02:38]}  c6 {[%clk 0:00:57]} 26. g3 {[%clk 0:02:34]}  h5 {[%clk 0:00:47]} 27. f4 {[%clk 0:02:29]}  Bd8 {[%clk 0:00:47]} 28. Red1 {[%clk 0:02:25]}  Bb6 {[%clk 0:00:37]} 29. Rb7 {[%clk 0:02:20]}  Bc5 {[%clk 0:00:33]} 30. Rdd7 {[%clk 0:02:07]}  Ra2 {[%clk 0:00:30]} 31. Rxf7 {[%clk 0:02:03]}  Bf8 {[%clk 0:00:30]} 32. Bxg7 {[%clk 0:01:45]}  Rxc2 {[%clk 0:00:30]} 33. Rxf8+ {[%clk 0:01:24]}  Rxf8 {[%clk 0:00:30]} 34. Bxf8 {[%clk 0:01:25]}  Kxf8 {[%clk 0:00:31]} 35. Rh7 {[%clk 0:01:07]}  Rc3 {[%clk 0:00:27]} 36. Kf2 {[%clk 0:01:07]}  Rxb3 {[%clk 0:00:26]} 37. Rxh5 {[%clk 0:01:05]}  Rc3 {[%clk 0:00:27]} 38. Rh8+ {[%clk 0:00:52]}  Ke7 {[%clk 0:00:27]} 39. Rb8 {[%clk 0:00:51]}  Kf6 {[%clk 0:00:27]} 40. h4 {[%clk 0:00:49]}  Kf5 {[%clk 0:00:25]} 41. Kg2 {[%clk 0:00:44]}  Rc2+ {[%clk 0:00:14]} 42. Kh3 {[%clk 0:00:44]}  Rc1 {[%clk 0:00:15]} 43. Rf8+ {[%clk 0:00:43]}  Kg6 {[%clk 0:00:15]} 44. Kg4 {[%clk 0:00:42]}  b4 {[%clk 0:00:15]} 45. Rb8 {[%clk 0:00:42]}  Kg7 {[%clk 0:00:15]} 46. Rxb4 {[%clk 0:00:42]} 1-0


[Site "https://www.chess.com"]

[Event "Titled Tuesday Blitz August 23 Late 2022"]
[White "Thomforde-Toates, Noah"]
[Black "Nozdrachev, Leonid"]
[WhiteFideId "30951992"]
[BlackFideId "24113433"]
[WhiteElo "2610"]
[BlackElo "2100"]
[Result "1-0"]
[Round "10"]
[TimeControl "180+1"]
[Date "2022.08.23"]
[WhiteClock "0:00:51"]
[BlackClock "0:00:01"]

1. e4 {[%clk 0:02:53]}  c6 {[%clk 0:02:59]} 2. Bc4 {[%clk 0:02:50]}  d5 {[%clk 0:02:58]} 3. Bb3 {[%clk 0:02:50]}  Nf6 {[%clk 0:02:54]} 4. e5 {[%clk 0:02:49]}  Ne4 {[%clk 0:02:54]} 5. Nc3 {[%clk 0:02:48]}  Nc5 {[%clk 0:02:51]} 6. d4 {[%clk 0:02:46]}  Nxb3 {[%clk 0:02:48]} 7. axb3 {[%clk 0:02:47]}  Bf5 {[%clk 0:02:48]} 8. Nge2 {[%clk 0:02:44]}  e6 {[%clk 0:02:48]} 9. Ng3 {[%clk 0:02:40]}  Bg6 {[%clk 0:02:47]} 10. h4 {[%clk 0:02:39]}  h6 {[%clk 0:02:47]} 11. h5 {[%clk 0:02:39]}  Bh7 {[%clk 0:02:47]} 12. Be3 {[%clk 0:02:39]}  Be7 {[%clk 0:02:47]} 13. Qd2 {[%clk 0:02:37]}  Nd7 {[%clk 0:02:47]} 14. Nce2 {[%clk 0:02:27]}  Qb6 {[%clk 0:02:43]} 15. Kd1 {[%clk 0:02:16]}  Rc8 {[%clk 0:02:42]} 16. Qa5 {[%clk 0:02:14]}  Qxa5 {[%clk 0:02:38]} 17. Rxa5 {[%clk 0:02:12]}  a6 {[%clk 0:02:38]} 18. c3 {[%clk 0:02:11]}  f6 {[%clk 0:02:31]} 19. f4 {[%clk 0:02:07]}  fxe5 {[%clk 0:02:31]} 20. fxe5 {[%clk 0:02:02]}  O-O {[%clk 0:02:29]} 21. b4 {[%clk 0:02:01]}  Ra8 {[%clk 0:02:03]} 22. Kd2 {[%clk 0:01:58]}  Nb6 {[%clk 0:01:54]} 23. b3 {[%clk 0:01:57]}  Rf7 {[%clk 0:01:48]} 24. Nf4 {[%clk 0:01:56]}  Bg5 {[%clk 0:01:42]} 25. Nxe6 {[%clk 0:01:55]}  Rf2+ {[%clk 0:01:42]} 26. Ne2 {[%clk 0:01:55]}  Rxg2 {[%clk 0:01:19]} 27. Bxg5 {[%clk 0:01:47]}  hxg5 {[%clk 0:01:20]} 28. Rg1 {[%clk 0:01:47]}  Rxg1 {[%clk 0:01:17]} 29. Nxg1 {[%clk 0:01:47]}  g4 {[%clk 0:01:17]} 30. Nc5 {[%clk 0:01:43]}  Rf8 {[%clk 0:01:08]} 31. Ne2 {[%clk 0:01:40]}  Rf2 {[%clk 0:01:01]} 32. Ke3 {[%clk 0:01:40]}  Rf3+ {[%clk 0:00:59]} 33. Kd2 {[%clk 0:01:40]}  g3 {[%clk 0:00:59]} 34. Ra1 {[%clk 0:01:39]}  Nd7 {[%clk 0:00:25]} 35. Nxd7 {[%clk 0:01:15]}  Rd3+ {[%clk 0:00:25]} 36. Ke1 {[%clk 0:01:15]}  g2 {[%clk 0:00:23]} 37. Kf2 {[%clk 0:01:15]}  Rd2 {[%clk 0:00:23]} 38. Re1 {[%clk 0:01:10]}  Bd3 {[%clk 0:00:22]} 39. Kxg2 {[%clk 0:01:02]}  Bxe2 {[%clk 0:00:22]} 40. Kg3 {[%clk 0:01:02]}  Bxh5 {[%clk 0:00:20]} 41. Nc5 {[%clk 0:01:00]}  b6 {[%clk 0:00:17]} 42. Nd7 {[%clk 0:00:59]}  Rd3+ {[%clk 0:00:16]} 43. Kh4 {[%clk 0:00:59]}  Rxc3 {[%clk 0:00:17]} 44. Kxh5 {[%clk 0:00:59]}  Kf7 {[%clk 0:00:16]} 45. e6+ {[%clk 0:00:56]}  Ke7 {[%clk 0:00:16]} 46. Nb8 {[%clk 0:00:56]}  a5 {[%clk 0:00:10]} 47. bxa5 {[%clk 0:00:55]}  bxa5 {[%clk 0:00:11]} 48. Na6 {[%clk 0:00:53]}  Rxb3 {[%clk 0:00:09]} 49. Nc5 {[%clk 0:00:53]}  Rg3 {[%clk 0:00:08]} 50. Rf1 {[%clk 0:00:52]}  a4 {[%clk 0:00:05]} 51. Rf7+ {[%clk 0:00:52]}  Ke8 {[%clk 0:00:05]} 52. Nb7 {[%clk 0:00:52]}  Rh3+ {[%clk 0:00:01]} 53. Kg4 {[%clk 0:00:51]} 1-0


[Site "https://www.chess.com"]